[Event "Czech Extraliga 2023-24"]
[Site "Czech Republic"]
[Date "2024.02.10"]
[Round "7.2"]
[White "Hracek, Zbynek"]
[Black "Vlasak, Lukas"]
[Result "1/2-1/2"]
[ECO "B30"]
[WhiteElo "2549"]
[BlackElo "2434"]
[Annotator "TA"]
[PlyCount "33"]
[EventDate "2023.10.14"]
[EventCountry "CZE"]
[SourceTitle "playchess.com"]
[Source "ChessBase"]
[SourceQuality "1"]
[TimeControl "40/5400+30:1800+30"]

{[%evp 9,33,17,20,14,19,13,16,0,18,0,25,9,21,5,17,0,23,9,6,7,0,0,16,0,6,-22]} 1. e4 {[%emt 0:00:03]} c5 {[%emt 0:00:22]} 2. Nf3 {[%emt 0:00:12]} Nc6 {[%emt 0:00:26]} 3. Bb5 {[%emt 0:00:19]} e5 {[%emt 0:00:24]} 4. O-O {[%emt 0:04:02]} Bd6 {[%emt 0:00:30]} 5. d3 {[%emt 0:03:48]} Nf6 {[%emt 0:03:28]} 6. Bg5 {[%emt 0:04:00]} a6 {[%emt 0:02:08]} 7. Bc4 {[%emt 0:00:11]} Be7 {[%emt 0:00:51]} 8. Nc3 {[%emt 0:02:06]} d6 {[%emt 0:04:39]} 9. a3 {[%emt 0:10:35]} Be6 {[%emt 0:02:40]} 10. Bxf6 {[%emt 0:02:44]} Bxf6 {[%emt 0:00:19]} 11. Nd5 {[%emt 0:00:04]} O-O {[%emt 0:01:00]} 12. c3 {[%emt 0:01:23]} g6 {[%emt 0:06:12]} 13. b4 {[%emt 0:17:18]} b5 {[%emt 0:05:47] The position is equal.} 14. Bb3 {[%emt 0:00:55]} Bg7 {[%emt 0:02:30]} 15. a4 {[%emt 0:06:31]} Rc8 {[%emt 0:26:51]} 16. axb5 {[%emt 0:02:48]} axb5 {[%emt 0:00:19]} 17. Ra6 {[%emt 0:42:01] An uneventful encounter.   Weighted Error Value: White=0.09 (flawless) /Black=0.10 (very precise) .  Inaccurate:     	White=1     	---        OK:         	White=4     	Black=2} 1/2-1/2

[Event "Czech Extraliga 2023-24"]
[Site "Czech Republic"]
[Date "2024.02.10"]
[Round "7.2"]
[White "LIN2 Stocek Jiri GM"]
[Black "NOV4 Navara David GM"]
[Result "0-1"]
[ECO "B94"]
[WhiteElo "2535"]
[BlackElo "2689"]
[Annotator "TA"]
[PlyCount "82"]
[EventDate "2023.10.14"]
[EventCountry "CZE"]
[SourceTitle "playchess.com"]
[Source "ChessBase"]
[SourceQuality "1"]
[TimeControl "40/5400+30:1800+30"]

{[%evp 28,82,122,125,136,0,0,0,-87,-93,-86,-143,-127,-244,0,0,0,0,0,0,0,0,0,-44,-59,-155,-157,-130,-138,-140,247,-259,-172,-172,-152,-154,-149,-157,-157,-169,-147,-150,-160,-201,-185,-206,-169,-275,-46,-43,-38,-165,-166,-360,-349,-6219,-2332]} 1. e4 {[%emt 0:00:39]} c5 {[%emt 0:00:18]} 2. Nf3 {[%emt 0:00:12]} d6 {[%emt 0:00:41]} 3. d4 {[%emt 0:02:57]} cxd4 {[%emt 0:00:11]} 4. Nxd4 {[%emt 0:00:08]} Nf6 {[%emt 0:00:07]} 5. Nc3 {[%emt 0:01:25]} a6 {[%emt 0:00:17]} 6. Bg5 {[%emt 0:01:06]} Nbd7 {[%emt 0:00:11]} 7. Bc4 {[%emt 0:00:56]} Qb6 {[%emt 0:00:37] B94: Sicilian Najdorf: 6 Bg5 Nbd7.} 8. Qd2 {[%emt 0:02:57]} Qxb2 {[%emt 0:04:47]} 9. O-O {[%emt 0:02:06]} Qb4 {[%emt 0:05:26]} 10. Bb3 {[%emt 0:02:30]} e6 {[%emt 0:10:04]} 11. Rad1 {[%emt 0:25:34]} Be7 {[%emt 0:02:25]} 12. Bxe6 {[%emt 0:00:39]} fxe6 {[%emt 0:00:23]} 13. Nxe6 {[%emt 0:00:06]} Kf7 {[%emt 0:04:10]} 14. Nc7 {[%emt 0:00:22]} Rb8 $146 {[%emt 0:07:59]} (14... Nb6 $1 $11 15. Rb1) ({Predecessor:} 14... Nb6 15. Rb1 Qc5 16. Nxa8 Nxa8 17. Bxf6 Bxf6 18. Nd5 Nc7 19. Nxf6 gxf6 20. Rb3 Rg8 {1-0 Najer,E (2674)-Bocharov,D (2530) RUS-chT 26th 2019 (5.4)}) 15. N7d5 $16 {[%emt 0:06:58]} Qc5 {[%emt 0:01:08]} 16. Be3 $2 {[%emt 0:08:25]} (16. Nxe7 $16 Kxe7 17. e5 dxe5 18. Ne4) 16... Qc6 $17 {[%emt 0:02:53]} 17. Nxe7 {[%emt 0:01:21]} Kxe7 {[%emt 0:01:14]} 18. Bd4 {[%emt 0:01:55]} Kf7 {[%emt 0:03:32]} (18... Nxe4 $2 19. Rfe1 (19. Nxe4 Kd8 $18) 19... Ne5 20. Nxe4 $18) 19. f4 {[%emt 0:06:31]} (19. Nd5 $142) 19... Re8 $17 {[%emt 0:08:53]} (19... Nxe4 20. Nxe4 b6 (20... Qxe4 $2 21. Rfe1 $18) 21. Qe3 $18 (21. Ng5+ Kf8 $18)) 20. Rde1 {[%emt 0:03:49]} (20. e5 $17 Nxe5 (20... dxe5 21. fxe5 Nxe5 22. Qf4 $17) 21. fxe5 dxe5 22. Ba7) 20... Nxe4 $2 {[%emt 0:09:13]} (20... b5 $1 $19 {[%cal Rb5b4] White must now prevent ...b4.} 21. e5 b4) 21. Nxe4 $11 {[%emt 0:01:44]} Rxe4 {[%emt 0:00:15]} 22. Rxe4 {[%emt 0:04:34]} Qxe4 {[%emt 0:00:16]} 23. Re1 {[%emt 0:01:58]} Qd5 {[%emt 0:02:11]} 24. c4 $1 {[%emt 0:10:21]} Qxc4 {[%emt 0:09:08]} 25. Qe3 {[%emt 0:00:30]} (25. Ba7 $5 Ra8 26. Qxd6 $19) 25... Kg8 {[%emt 0:01:30]} (25... Qxa2 26. Qe8#) 26. Bb2 {[%emt 0:10:47]} (26. Bxg7 $1 $15 Kxg7 27. Qe7+ Qf7 28. Qd8) 26... Qc5 $17 {[%emt 0:20:31]} (26... Qxa2 $2 27. Qe7 Qf7 (27... Qxb2 28. Qe6+ Kh8 29. Qe8+) 28. Qd8+ Nf8 29. Re7 $18) 27. Bd4 {[%emt 0:00:05]} Qd5 {[%emt 0:00:10]} 28. Bb2 {[%emt 0:00:34]} b5 $2 {[%emt 0:01:03][%mdl 8192]} (28... Qxa2 $2 29. Qe7 Qf7 (29... Qxb2 30. Qe6+ Kh8 31. Qe8+) 30. Qd8+ Nf8 31. Re7 $18) (28... Qf7 $1 $17 {[%cal Ob7b5] Strongly threatening ...b5!} 29. Qd4 b5 (29... Qxa2 30. Qxg7#) 30. Qxd6 Rb6 (30... Qxa2 31. Re8+ Kf7 32. Qe7+ Kg6 33. Qxg7+ Kh5 34. Qg5#)) 29. Qg3 $4 {[%emt 0:01:03][%mdl 8192]} (29. Qe7 $1 $18 {[%csl Gb2][%cal Re7g7] is the narrow road to win.} Qf7 (29... Qxa2 30. Qxg7#) 30. Qd8+ Nf8 31. Re7 Qxe7 (31... Qxa2 32. Rxg7+ Kh8 33. Qxf8+) (31... Be6 $2 32. Rxf7 Kxf7 33. Qxb8 $18) 32. Qxe7) 29... Qf7 {[%emt 0:02:55]} (29... Qxa2 30. Qxg7#) 30. Re8+ {[%emt 0:00:38]} Nf8 $1 {[%emt 0:00:06]} 31. f5 {[%emt 0:01:13]} Rb7 $1 {[%emt 0:01:17]} (31... Qxe8 32. Qxg7#) (31... Bxf5 $2 32. Rxb8 Qe7 33. h3 $18) 32. Rxc8 {[%emt 0:00:16]} Qxf5 {[%emt 0:00:24]} ({But not} 32... Qxa2 33. Qf2 Rf7 34. f6 $17) 33. Rc1 {[%emt 0:00:58]} Rf7 {[%emt 0:00:19]} 34. h3 {[%emt 0:00:14]} h6 {[%emt 0:01:36]} 35. a3 {[%emt 0:01:38]} Ng6 {[%emt 0:01:10]} 36. Kh2 {[%emt 0:00:08]} Nf4 {[%emt 0:00:35]} 37. Rc6 {[%emt 0:00:40]} (37. Re1 $142) 37... a5 $2 {[%emt 0:00:32]} (37... Ne2 $1 $19 {[%cal Re2g3]} 38. Qe3 Re7) 38. Rxd6 $15 {[%emt 0:00:21]} Kh7 {[%emt 0:00:21]} 39. Rd8 {[%emt 0:00:57] [#]} (39. Qf3 $15) 39... Qc2 $1 $19 {[%emt 0:00:31]} 40. Be5 $2 {[%emt 0:00:38] [#]} (40. Bc3 {was necessary.}) 40... Nxg2 $1 $19 {[%emt 0:00:30]} 41. Kg1 $2 {[%emt 0:01:29]} (41. Qxg2 $2 {is the wrong capture.} Rf2 $19) (41. Qd3+ Qxd3 42. Rxd3) 41... Qb1+ {[%emt 0:00:22]} (41... Qc1+ $142 42. Kxg2 Qf1+ 43. Kh2 Rf2+ 44. Qxf2 Qxf2+ 45. Kh1 Qe1+ 46. Kg2 Qe2+ (46... Qxe5 $2 47. h4 $19) 47. Kh1 Qe4+ (47... Qxe5 $2 48. Rf8 $19) 48. Kg1 Qxe5) 0-1

[Event "Czech Extraliga 2023-24"]
[Site "Czech Republic"]
[Date "2024.02.10"]
[Round "7.2"]
[White "Cernousek, Lukas"]
[Black "Sahidi, Samir"]
[Result "1-0"]
[ECO "C46"]
[WhiteElo "2447"]
[BlackElo "2478"]
[Annotator "TA"]
[PlyCount "111"]
[EventDate "2023.10.14"]
[EventCountry "CZE"]
[SourceTitle "playchess.com"]
[Source "ChessBase"]
[SourceQuality "1"]
[TimeControl "40/5400+30:1800+30"]

{[%evp 9,111,51,35,50,54,18,21,6,33,16,36,25,32,29,36,-8,-8,-10,-16,-14,-16,-12,0,0,0,0,0,0,0,0,0,0,0,0,0,0,0,0,0,0,0,0,0,0,4,0,0,0,0,0,0,0,0,0,0,0,18,0,0,-5,5,0,0,0,0,0,0,0,0,-8,-9,-8,-8,-8,0,0,24,26,44,41,40,41,80,80,371,342,519,509,503,172,172,168,288,288,820,1327,1566,1433,2319,1693,29963,29966,12850,12845]} 1. e4 {[%emt 0:00:23]} e5 {[%emt 0:00:46]} 2. Nf3 {[%emt 0:00:07]} Nc6 {[%emt 0:00:05]} 3. Nc3 {[%emt 0:00:04]} Bb4 {[%emt 0:01:41]} 4. Nd5 {[%emt 0:00:46]} Nf6 {[%emt 0:02:18]} 5. Nxb4 {[%emt 0:05:59]} Nxb4 {[%emt 0:00:06]} 6. d4 {[%emt 0:02:53]} Nxe4 {[%emt 0:04:49]} 7. a3 {[%emt 0:12:41]} Nc6 {[%emt 0:00:35][%cal Bb4c6,Bc6d4,Bd4b3][%mdl 32]} 8. dxe5 {[%emt 0:01:11] The position is equal.} d5 {[%emt 0:00:21]} 9. exd6 {[%emt 0:00:31]} Nxd6 {[%emt 0:04:19]} 10. Qe2+ {[%emt 0:06:20]} Be6 {[%emt 0:07:17]} 11. Ng5 {[%emt 0:09:20]} Nd4 {[%emt 0:02:01]} 12. Qd3 {[%emt 0:02:07]} (12. Nxe6 {simplifies} Nxe6 13. Be3 Qf6 14. O-O-O) 12... Qf6 {[%emt 0:01:36]} 13. Nxe6 {[%emt 0:15:34]} Qxe6+ {[%emt 0:06:38]} 14. Be2 {[%emt 0:00:06]} N6f5 {[%emt 0:03:07]} 15. c3 {[%emt 0:07:18]} Nb3 {[%emt 0:11:13] Excellent horsemanship.} (15... Qxe2+ {simplifies} 16. Qxe2+ Nxe2 17. Kxe2 O-O-O) 16. Rb1 {[%emt 0:02:02]} O-O {[%emt 0:04:20]} 17. O-O {[%emt 0:00:49]} Rad8 {[%emt 0:00:04]} 18. Qc4 {[%emt 0:01:35]} Qxc4 {[%emt 0:08:18]} 19. Bxc4 {[%emt 0:00:02]} Nd2 {[%emt 0:00:24]} 20. Bxd2 {[%emt 0:00:02]} Rxd2 {[%emt 0:00:09]} 21. Rfd1 {[%emt 0:00:08]} Rfd8 {[%emt 0:00:27]} 22. Be2 {[%emt 0:10:53]} g5 {[%emt 0:02:34]} 23. Kf1 {[%emt 0:01:24]} Kg7 {[%emt 0:01:32]} 24. Ke1 {[%emt 0:01:38]} R2d6 {[%emt 0:03:13]} 25. Rxd6 {[%emt 0:00:26]} Nxd6 $11 {[%emt 0:00:50][%mdl 4096] Endgame. KRB-KRN} 26. Rd1 {[%emt 0:00:47]} Re8 {[%emt 0:00:31]} 27. Rd4 {[%emt 0:08:36]} f5 {[%emt 0:00:55]} 28. Kd1 {[%emt 0:02:57]} Kf6 {[%emt 0:01:38]} 29. Bd3 {[%emt 0:03:32]} f4 {[%emt 0:10:28]} 30. c4 {[%emt 0:02:24][%cal Bc3c4,Bc4c5][%mdl 32]} (30. Bxh7 Rh8 31. Bd3 Rxh2 $17) 30... h6 {[%emt 0:03:35]} (30... Ke5 $5 31. Rd5+ $8 Kf6 $11) 31. c5 {[%emt 0:00:30]} Nf7 {[%emt 0:00:05]} (31... Ke5 32. Ra4 b5 33. Rxa7 $18) 32. Ra4 {[%emt 0:00:25]} Ra8 {[%emt 0:02:29]} 33. Be4 {[%emt 0:01:40]} c6 {[%emt 0:00:46]} 34. Kc2 {[%emt 0:00:35]} Re8 {[%emt 0:04:48]} 35. f3 {[%emt 0:01:09]} Re5 {[%emt 0:00:47]} 36. Rxa7 {[%emt 0:00:42] [#] Strongly threatening b4.} Rxc5+ {[%emt 0:00:06]} 37. Kd2 {[%emt 0:00:33]} Nd6 {[%emt 0:00:33]} 38. b4 {[%emt 0:00:46]} Re5 {[%emt 0:01:46]} 39. Kd3 {[%emt 0:00:30]} Re8 {[%emt 0:04:52]} 40. a4 {[%emt 0:00:26]} Rd8 {[%emt 0:01:25]} 41. Kc3 {[%emt 0:05:26]} h5 {[%emt 0:04:40] Hoping for ...Nxe4+.} 42. Bd3 {[%emt 0:03:04]} Re8 {[%emt 0:02:20]} 43. a5 {[%emt 0:09:48]} Re1 {[%emt 0:21:28]} 44. a6 {[%emt 0:00:06]} bxa6 {[%emt 0:00:27]} 45. Rxa6 {[%emt 0:00:01]} Rg1 {[%emt 0:00:47]} 46. b5 {[%emt 0:01:37]} ({Of course not} 46. Rxc6 $6 Ke7 $11) 46... Rc1+ $2 {[%emt 0:07:19][%mdl 8192] [#] This costs Black the game.} (46... Nxb5+ $16 {is a better defense.} 47. Bxb5 Rxg2) 47. Kd4 $18 {[%emt 0:02:38]} Nf5+ {[%emt 0:02:17]} (47... Ke7 $142 48. Rxc6 Ra1 49. Rc7+ Ke6) 48. Bxf5 {[%emt 0:00:42]} Kxf5 {[%emt 0:00:02]} 49. bxc6 {[%emt 0:09:37] KR-KR} (49. Rxc6 Rg1 50. b6) 49... Ke6 {[%emt 0:01:41]} 50. c7+ {[%emt 0:00:04]} Kd7 {[%emt 0:00:29]} (50... Kf7 $142) 51. Rg6 {[%emt 0:00:22]} g4 {[%emt 0:00:31]} (51... Kxc7 52. Rxg5 Rb1) 52. fxg4 {[%emt 0:01:04]} hxg4 {[%emt 0:00:09]} 53. Rxg4 {[%emt 0:01:15]} Rf1 {[%emt 0:00:45]} 54. Ke4 {[%emt 0:00:27]} f3 {[%emt 0:00:04]} 55. Rg7+ {[%emt 0:00:12]} (55. gxf3 Kxc7 56. f4 Kd8 $18) 55... Kc8 {[%emt 0:00:04]} 56. gxf3 {[%emt 0:00:09] Weighted Error Value: White=0.11 (very precise) /Black=0.34.  Loses game:     	---       	Black=1      Mistake:       	White=1     	Black=3      Inaccurate:     	White=2     	Black=1      OK:         	White=19    	Black=16     Best:        	White=8     	Black=2} 1-0

[Event "Czech Extraliga 2023-24"]
[Site "Czech Republic"]
[Date "2024.02.10"]
[Round "7.3"]
[White "NOV5 Nguyen Thai Dai Van GM"]
[Black "LIN3 Mihok Oliver GM"]
[Result "1/2-1/2"]
[ECO "C42"]
[WhiteElo "2618"]
[BlackElo "2555"]
[Annotator "TA"]
[PlyCount "81"]
[EventDate "2023.10.14"]
[EventCountry "CZE"]
[SourceTitle "playchess.com"]
[Source "ChessBase"]
[SourceQuality "1"]
[TimeControl "40/5400+30:1800+30"]

{[%evp 12,81,43,36,47,47,54,50,45,43,48,40,39,47,39,47,43,34,51,22,21,18,17,10,9,10,16,14,8,12,8,9,8,6,8,9,8,2,6,4,9,9,11,6,8,0,0,0,3,0,0,0,0,0,0,0,0,0,0,0,0,0,0,0,0,1,1,0,2,1,17,0]} 1. e4 {[%emt 0:00:23]} e5 {[%emt 0:00:07]} 2. Nf3 {[%emt 0:00:51]} Nf6 {[%emt 0:00:06]} 3. Nxe5 {[%emt 0:02:19]} Nxe4 {[%emt 0:00:06]} 4. Qe2 {[%emt 0:01:31]} Qe7 {[%emt 0:01:33]} 5. Qxe4 {[%emt 0:00:35]} d6 {[%emt 0:00:05]} 6. d4 {[%emt 0:05:01]} dxe5 {[%emt 0:00:07]} 7. dxe5 {[%emt 0:01:53]} Nc6 {[%emt 0:00:06][%cal Bb8c6,Bc6e5,Be5d7,Bd7c5,Bc5e6,Be6d4][%mdl 32]} 8. Nc3 {[%emt 0:07:53]} Qxe5 {[%emt 0:00:08]} 9. Qxe5+ {[%emt 0:04:50]} Nxe5 {[%emt 0:00:07] White is slightly better.} 10. Nb5 {[%emt 0:00:36]} Bb4+ {[%emt 0:00:06]} 11. Bd2 {[%emt 0:06:42]} Bxd2+ {[%emt 0:00:05]} 12. Kxd2 {[%emt 0:00:02][%cal Oa1e1] [#] Hoping for Re1!} Kd8 {[%emt 0:00:07]} 13. Re1 {[%emt 0:01:02]} Nd7 {[%emt 0:00:05]} 14. h4 {[%emt 0:10:37]} Nc5 {[%emt 0:00:29]} 15. Bc4 {[%emt 0:02:40][%cal Ob5d4]} Be6 {[%emt 0:12:47] The position is equal.} 16. Bxe6 {[%emt 0:00:09]} Nxe6 {[%emt 0:00:10]} 17. Rh3 {[%emt 0:00:04]} a6 {[%emt 0:05:36]} 18. Rd3+ {[%emt 0:05:45]} Kc8 {[%emt 0:00:14]} 19. Nd4 {[%emt 0:00:47]} Nxd4 {[%emt 0:03:21]} 20. Rxd4 $11 {[%emt 0:00:01][%mdl 4096] [#] Endgame. Strongly threatening Re7. KRR-KRR} Rd8 {[%emt 0:00:21]} 21. Ree4 {[%emt 0:00:47]} a5 {[%emt 0:04:20]} 22. Ke3 {[%emt 0:14:57] With the idea Re7.} Rxd4 {[%emt 0:02:29]} 23. Rxd4 {[%emt 0:00:11] KR-KR} ({Much less strong is} 23. Kxd4 Kd7 $16) 23... Ra6 {[%emt 0:00:46]} 24. g4 {[%emt 0:07:19]} Re6+ {[%emt 0:06:45]} 25. Kf3 {[%emt 0:01:06]} c6 {[%emt 0:03:55]} 26. Rf4 {[%emt 0:05:45]} Re7 {[%emt 0:02:53]} 27. Rf5 {[%emt 0:00:14]} b6 {[%emt 0:00:41]} 28. h5 {[%emt 0:01:25][%cal Oh5h6]} h6 {[%emt 0:05:25]} 29. Rf4 {[%emt 0:03:13]} Kd7 {[%emt 0:03:55]} 30. Rd4+ {[%emt 0:00:26]} Kc7 {[%emt 0:00:43]} 31. Re4 {[%emt 0:01:33]} Kd6 {[%emt 0:02:56]} 32. Rd4+ {[%emt 0:00:18]} Kc7 {[%emt 0:00:09]} 33. Rf4 {[%emt 0:06:16]} Kd6 {[%emt 0:02:04]} 34. a3 {[%emt 0:04:18]} Kd5 {[%emt 0:05:22]} 35. Rf5+ {[%emt 0:00:42]} Kd4 {[%emt 0:02:24]} 36. Rf4+ {[%emt 0:00:24]} Kd5 {[%emt 0:00:11]} 37. c3 {[%emt 0:03:46]} Kd6 {[%emt 0:05:36]} 38. Rd4+ {[%emt 0:00:23]} Kc7 {[%emt 0:00:45]} 39. a4 {[%emt 0:01:10]} Re5 {[%emt 0:04:02]} 40. Rf4 {[%emt 0:00:14]} Re7 {[%emt 0:01:10]} 41. Rd4 {[%emt 0:17:21] Weighted Error Value: White=0.02 (flawless) /Black=0.02 (flawless) .  Inaccurate:     	White=1     	---        OK:         	White=12    	Black=16     Best:        	---       	Black=4} 1/2-1/2

[Event "Czech Extraliga 2023-24"]
[Site "Czech Republic"]
[Date "2024.02.10"]
[Round "7.3"]
[White "Plat, Vojtech"]
[Black "Heberla, Bartlomiej"]
[Result "1/2-1/2"]
[ECO "C78"]
[WhiteElo "2516"]
[BlackElo "2546"]
[Annotator "TA"]
[PlyCount "25"]
[EventDate "2023.10.14"]
[EventCountry "CZE"]
[SourceTitle "playchess.com"]
[Source "ChessBase"]
[SourceQuality "1"]
[TimeControl "40/5400+30:1800+30"]

{[%evp 15,25,0,0,0,0,0,0,0,0,0,5,-8]} 1. e4 {[%emt 0:00:04]} e5 {[%emt 0:00:11]} 2. Nf3 {[%emt 0:00:06]} Nc6 {[%emt 0:00:06]} 3. Bb5 {[%emt 0:00:17][%cal Bf1b5,Bb5a4,Ba4b3][%mdl 32]} a6 {[%emt 0:00:07]} 4. Ba4 {[%emt 0:00:06]} Nf6 {[%emt 0:00:12]} 5. O-O {[%emt 0:00:08]} Bc5 {[%emt 0:00:10]} 6. d3 {[%emt 0:03:13]} b5 {[%emt 0:01:53]} 7. Bb3 {[%emt 0:00:06]} d6 {[%emt 0:00:06]} 8. c3 {[%emt 0:01:18]} h6 {[%emt 0:02:29] The position is equal.} 9. d4 {[%emt 0:02:53]} Bb6 {[%emt 0:01:39]} 10. dxe5 {[%emt 0:12:34]} Nxe5 {[%emt 0:00:14]} 11. Nxe5 {[%emt 0:06:35]} dxe5 {[%emt 0:00:04]} 12. Qxd8+ {[%emt 0:00:41]} Kxd8 {[%emt 0:00:03]} 13. Nd2 {[%emt 0:00:25] Not much happened in this game.   Weighted Error Value: White=0.00 (flawless) /Black=0.00 (flawless) .  OK:         	White=3     	Black=1} 1/2-1/2

[Event "Czech Extraliga 2023-24"]
[Site "Czech Republic"]
[Date "2024.02.10"]
[Round "7.3"]
[White "Sulypa, Oleksandr"]
[Black "Bernasek, Jan"]
[Result "0-1"]
[ECO "E32"]
[WhiteElo "2458"]
[BlackElo "2524"]
[Annotator "TA"]
[PlyCount "80"]
[EventDate "2023.10.14"]
[EventCountry "CZE"]
[SourceTitle "playchess.com"]
[Source "ChessBase"]
[SourceQuality "1"]
[TimeControl "40/5400+30:1800+30"]

{[%evp 10,80,8,15,5,4,2,12,27,28,44,44,57,40,40,41,33,37,42,37,55,47,31,33,23,0,0,-36,-37,-41,-23,-53,-36,-71,-48,-31,0,-131,-139,-195,-192,-190,-198,-296,-275,-310,-310,-316,-222,-237,-243,-446,-269,-312,-304,-573,-618,-606,-625,-628,-589,-784,-778,-752,-743,-2239,-2239,-29977,-29978,-29975,-29977,-29980,-29981]} 1. d4 {[%emt 0:00:49]} Nf6 {[%emt 0:00:09]} 2. c4 {[%emt 0:00:07]} e6 {[%emt 0:00:04]} 3. Nc3 {[%emt 0:03:06]} Bb4 {[%emt 0:00:06]} 4. Qc2 {[%emt 0:00:09]} O-O {[%emt 0:03:33]} 5. e4 {[%emt 0:02:26]} d6 {[%emt 0:03:37]} 6. a3 {[%emt 0:20:13]} Bxc3+ {[%emt 0:03:04]} 7. bxc3 {[%emt 0:00:02]} e5 {[%emt 0:03:54]} 8. Bd3 {[%emt 0:00:39]} Re8 {[%emt 0:18:17] The position is equal.} 9. Ne2 {[%emt 0:01:47]} Qe7 {[%emt 0:03:14]} 10. f3 {[%emt 0:11:07]} Nbd7 {[%emt 0:04:47]} 11. a4 {[%emt 0:01:42]} a5 {[%emt 0:03:57]} 12. Bg5 {[%emt 0:12:01]} Nf8 {[%emt 0:04:24]} 13. h4 {[%emt 0:01:33]} h6 {[%emt 0:06:52]} 14. Be3 {[%emt 0:00:14]} exd4 {[%emt 0:05:39]} 15. cxd4 {[%emt 0:03:42]} d5 {[%emt 0:02:49]} 16. cxd5 {[%emt 0:02:38]} Nxd5 {[%emt 0:00:25]} 17. Bd2 {[%emt 0:01:46]} (17. Kf2 {is interesting.} b6 18. Qc6 Nb4 19. Qc3) 17... Nb4 {[%emt 0:01:32]} 18. Bxb4 {[%emt 0:00:47]} axb4 {[%emt 0:03:24]} 19. O-O {[%emt 0:03:48]} c6 {[%emt 0:05:19][%cal Oa8a5]} 20. Qd2 {[%emt 0:13:48]} Rd8 {[%emt 0:03:31][%cal Oa8a5]} 21. Rfd1 {[%emt 0:07:06]} Be6 {[%emt 0:08:11][%cal Oa8a5]} 22. a5 {[%emt 0:00:59]} Ra7 {[%emt 0:03:49][%cal Oc6c5]} 23. Qe3 {[%emt 0:01:21] [#]} (23. Rdb1 $11) 23... Rda8 $1 $17 {[%emt 0:00:50] Black converts the advantage convincingly.} 24. f4 {[%emt 0:08:11]} (24. a6 $17) 24... Rxa5 $19 {[%emt 0:01:32]} 25. Rxa5 {[%emt 0:00:26]} Rxa5 {[%emt 0:00:06]} 26. Qg3 {[%emt 0:00:59]} (26. Qf2 $142) 26... Ra3 {[%emt 0:00:43]} 27. Qf2 {[%emt 0:01:33]} Bg4 {[%emt 0:01:01]} 28. e5 {[%emt 0:00:37]} Qe6 {[%emt 0:03:50] aiming for ...Qa2.} 29. f5 {[%emt 0:00:33]} Qa2 {[%emt 0:00:06][%cal Oa3d3] Threatens to win with ...Rxd3!} 30. e6 $2 {[%emt 0:00:48]} (30. Qe1 {was worth a try.}) 30... fxe6 {[%emt 0:01:22]} 31. fxe6 {[%emt 0:00:02]} Nxe6 {[%emt 0:00:40]} 32. Bg6 {[%emt 0:00:15]} (32. Rf1 {was the only defense.} Rxd3 33. Qf7+ Kh8 (33... Kh7 $2 34. Nf4 $19) 34. Nf4) 32... Nf8 {[%emt 0:01:13]} 33. h5 {[%emt 0:00:05]} Nxg6 {[%emt 0:02:22]} 34. hxg6 {[%emt 0:00:03][%cal Of2h4]} Bxe2 {[%emt 0:01:36]} ({Not} 34... Qxe2 35. Qf7+ Kh8 36. Qf8#) 35. Re1 {[%emt 0:01:40] [#]} Qe6 $1 {[%emt 0:00:35]} 36. Qxe2 {[%emt 0:00:29]} Qxg6 {[%emt 0:00:20]} 37. Qc4+ {[%emt 0:00:14]} Kh7 {[%emt 0:00:11]} 38. Qxb4 {[%emt 0:00:25]} Ra2 {[%emt 0:00:12][%csl Ga2][%cal Rg6g2] Black mates.} 39. Qb1 {[%emt 0:00:08]} Rxg2+ {[%emt 0:00:46]} 40. Kh1 {[%emt 0:00:11]} Rc2 {[%emt 0:00:10] Weighted Error Value: White=0.73/Black=0.14 (very precise) .  Mistake:       	White=5     	---        Inaccurate:     	White=3     	Black=2      OK:         	White=8     	Black=10     Best:        	White=1     	Black=1      Strong:       	---       	Black=1} 0-1